{"text_format":"3","workbook":"xlsx","n_sheets":4,"sheets":["開始","プロジェクト パラメーター","プロジェクト詳細","プロジェクト合計"],"not_rendered":{"charts":2,"defined_names":3,"pivot_tables":1},"read":"whole","date_system":"1900"}

{"sheet":"開始","index":0,"n_rows":8,"n_cols":2,"rows_kept":8}
[null,"このテンプレートについて"]
[]
[null,"このブックを使用すると、法律事務所のプロジェクト計画時にプロジェクト パラメーター、プロジェクト詳細、およびプロジェクト合計を追跡できます。"]
[null,"プロジェクト パラメーター ワークシートに会社名を入力すると、他のワークシートでも自動的に更新されます。"]
[null,"縦棒グラフを更新するには、プロジェクト パラメーター ワークシートとプロジェクト詳細ワークシートに情報を入力します。プロジェクト合計ワークシート内のピボットテーブルは自動更新されます。"]
[null,"注:   "]
[null,"各ワークシートの列 A に詳細な手順が記載されています。このテキストは意図的に表示されません。テキストを削除するには、列 A を選択し、[削除] を選択します。テキストを再表示するには、列 A を選択し、フォントの色を変更します。"]
[null,"ワークシートの表の詳細については、表内で Shift キーを押し、F10 キーを押して、[テーブル] オプションを選択し、[代替テキスト] を選択します。プロジェクト合計ワークシートのピボットテーブルの場合は、テーブル内で Shift キーを押しながら F10 キーを押して、[ピボットテーブル オプション]、[代替テキスト] タブの順に選択します。"]

{"sheet":"プロジェクト パラメーター","index":1,"n_rows":19,"n_cols":9,"rows_kept":19}
["このワークシートでは、プロジェクト パラメーターを作成します。右のセルに会社名を入力します。役立つ手順がこの列のセルに表示されます。","会社名"]
["このワークシートのタイトルは右のセルに表示されます。","法律事務所のプロジェクト計画"]
["社外秘に関するメッセージが、右のセルに表示されます。",{"$f":"B1&\" (極秘)\"","v":"会社名 (極秘)"}]
["ヒントは、右のセルに表示されます。","網掛けされているセルは自動的に計算されます。これらのセルに入力する必要はありません。"]
["右のセルから始まるパラメーター テーブルに詳細を入力します。次の指示はセル A12 に表示されます。","プロジェクトの種類","ジェネラル パートナー","会社弁護士","訴訟弁護士","知的財産弁護士","破産弁護士","管理スタッフ","集計"]
[null,"事業の法人化",{"v":0.1,"d":"¥0"},{"v":0.4,"d":"¥0"},{"v":0,"d":"¥0"},{"v":0,"d":"¥0"},{"v":0,"d":"¥0"},{"v":0.5,"d":"¥1"},{"$f":"SUM(パラメーター[[#This Row],[ジェネラル パートナー]:[管理スタッフ]])","v":{"v":1,"d":"¥1"}}]
[null,"事業の買収",{"v":0.1,"d":"¥0"},{"v":0.4,"d":"¥0"},{"v":0,"d":"¥0"},{"v":0.1,"d":"¥0"},{"v":0,"d":"¥0"},{"v":0.4,"d":"¥0"},{"$f":"SUM(パラメーター[[#This Row],[ジェネラル パートナー]:[管理スタッフ]])","v":{"v":1,"d":"¥1"}}]
[null,"製造物責任防御",{"v":0.2,"d":"¥0"},{"v":0,"d":"¥0"},{"v":0.5,"d":"¥1"},{"v":0,"d":"¥0"},{"v":0,"d":"¥0"},{"v":0.3,"d":"¥0"},{"$f":"SUM(パラメーター[[#This Row],[ジェネラル パートナー]:[管理スタッフ]])","v":{"v":1,"d":"¥1"}}]
[null,"特許申請",{"v":0.1,"d":"¥0"},{"v":0,"d":"¥0"},{"v":0,"d":"¥0"},{"v":0.6,"d":"¥1"},{"v":0,"d":"¥0"},{"v":0.3,"d":"¥0"},{"$f":"SUM(パラメーター[[#This Row],[ジェネラル パートナー]:[管理スタッフ]])","v":{"v":1,"d":"¥1"}}]
[null,"従業員の訴訟",{"v":0.2,"d":"¥0"},{"v":0.1,"d":"¥0"},{"v":0.4,"d":"¥0"},{"v":0,"d":"¥0"},{"v":0,"d":"¥0"},{"v":0.3,"d":"¥0"},{"$f":"SUM(パラメーター[[#This Row],[ジェネラル パートナー]:[管理スタッフ]])","v":{"v":1,"d":"¥1"}}]
[null,"破産",{"v":0.1,"d":"¥0"},{"v":0.2,"d":"¥0"},{"v":0,"d":"¥0"},{"v":0,"d":"¥0"},{"v":0.4,"d":"¥0"},{"v":0.3,"d":"¥0"},{"$f":"SUM(パラメーター[[#This Row],[ジェネラル パートナー]:[管理スタッフ]])","v":{"v":1,"d":"¥1"}}]
["右のセル (C12 から H12) に、混合レートを入力します。次の指示はセル A14 に表示されます。","混合レート",{"v":350,"d":"¥350"},{"v":250,"d":"¥250"},{"v":300,"d":"¥300"},{"v":275,"d":"¥275"},{"v":225,"d":"¥225"},{"v":125,"d":"¥125"}]
[]
["費用の計画と実績を示す縦棒グラフは右のセルに表示され、時間の計画と実績を示す縦棒グラフはセル F14 に表示されます。"]
[null,null,"ジェネラル パートナー","業務","訴訟弁護士","知的財産","破産","管理スタッフ"]
[null,"計画的費用",{"$f":"SUBTOTAL(109,詳細[ジェネラル パートナー])","v":{"v":78750,"d":"¥78,750.00"}},{"$f":"SUBTOTAL(109,詳細[会社弁護士])","v":{"v":66250,"d":"¥66,250.00"}},{"$f":"SUBTOTAL(109,詳細[訴訟弁護士])","v":{"v":105000,"d":"¥105,000.00"}},{"$f":"SUBTOTAL(109,詳細[知的財産弁護士])","v":{"v":35750,"d":"¥35,750.00"}},{"$f":"SUBTOTAL(109,詳細[破産弁護士])","v":{"v":0,"d":"¥0.00"}},{"$f":"SUBTOTAL(109,詳細[管理スタッフ])","v":{"v":66250,"d":"¥66,250.00"}}]
[null,"実績費用",{"$f":"SUBTOTAL(109,詳細[ジェネラル パートナー2])","v":{"v":79275,"d":"¥79,275.00"}},{"$f":"SUBTOTAL(109,詳細[会社弁護士 2])","v":{"v":67375,"d":"¥67,375.00"}},{"$f":"SUBTOTAL(109,詳細[訴訟弁護士 2])","v":{"v":105600,"d":"¥105,600.00"}},{"$f":"SUBTOTAL(109,詳細[知的財産弁護士 2])","v":{"v":34650,"d":"¥34,650.00"}},{"$f":"SUBTOTAL(109,詳細[破産弁護士 2])","v":{"v":0,"d":"¥0.00"}},{"$f":"SUBTOTAL(109,詳細[管理スタッフ 2])","v":{"v":67000,"d":"¥67,000.00"}}]
[null,"計画時間",{"$f":"C16/$C$12","v":{"v":225,"d":"225.00"}},{"$f":"D16/$C$12","v":{"v":189.28571428571428,"d":"189.29"}},{"v":300,"d":"300.00"},{"v":102.14285714285714,"d":"102.14"},{"v":0,"d":"0.00"},{"v":189.28571428571428,"d":"189.29"}]
[null,"実績時間",{"$f":"C17/$C$12","v":{"v":226.5,"d":"226.50"}},{"$f":"D17/$C$12","v":{"v":192.5,"d":"192.50"}},{"$f":"E17/$C$12","v":{"v":301.7142857142857,"d":"301.71"}},{"$f":"F17/$C$12","v":{"v":99,"d":"99.00"}},{"$f":"G17/$C$12","v":{"v":0,"d":"0.00"}},{"$f":"H17/$C$12","v":{"v":191.42857142857142,"d":"191.43"}}]

{"sheet":"プロジェクト詳細","index":2,"n_rows":10,"n_cols":25,"rows_kept":10,"merged":[[1,24,8,28]]}
["このワークシートでは、プロジェクト詳細を作成します。会社名は右のセルで自動的に更新されます。役立つ手順がこの列のセルに表示されます。下向き矢印で開始します。",{"$f":"'プロジェクト パラメーター'!B1","v":"会社名"}]
["このワークシートのタイトルは右のセルに表示され、あり、情報のヒントはセル Y2 に表示されます。",{"$f":"'プロジェクト パラメーター'!B2","v":"法律事務所のプロジェクト計画"},{"$nulls":22},"情報:\n行を追加するには、(合計行ではなく) 表の本文の一番右下のセルを選択して Tab キーを押すか、行を挿入したい場所で Shift キーを押してから F10 キーを押して、[挿入]、[テーブルの行 (上)] または [テーブルの行 (下)] の順に選択します。\nプロジェクト合計ピボットテーブルはすべてのセルを使用するため、未使用の行がすべて削除されていることを確認します (削除されていないと結果がエラーになります)。"]
["社外秘に関するメッセージが、右のセルに表示されます。",{"$f":"'プロジェクト パラメーター'!B3","v":"会社名 (極秘)"}]
["右側のセルから始めて、詳細テーブルに情報を入力します。右の詳細テーブルのプロジェクトの種類は、プロジェクト パラメーター ワークシート内のパラメーター テーブルに合わせて自動更新されます。","プロジェクト名","プロジェクトの種類","開始計画","終了計画","開始実績","終了実績","作業時間計画","作業時間実績","継続期間計画","継続期間実績","ジェネラル パートナー","会社弁護士","訴訟弁護士","知的財産弁護士","破産弁護士","管理スタッフ","ジェネラル パートナー2","会社弁護士 2","訴訟弁護士 2","知的財産弁護士 2","破産弁護士 2","管理スタッフ 2"]
[null,"プロジェクト 1","事業の法人化",{"$f":"TODAY()","v":"2019-02-15"},{"$f":"TODAY()+60","v":"2019-04-16"},{"$f":"TODAY()+10","v":"2019-02-25"},{"$f":"TODAY()+65","v":"2019-04-21"},200,220,{"$f":"DAYS360(詳細[[#This Row],[開始計画]],詳細[[#This Row],[終了計画]],FALSE)","v":61},{"$f":"DAYS360(詳細[[#This Row],[開始実績]],詳細[[#This Row],[終了実績]],FALSE)","v":56},{"$f":"INDEX(パラメーター[],MATCH(詳細[[#This Row],[プロジェクトの種類]],パラメーター[プロジェクトの種類],0),MATCH(詳細[[#Headers],[ジェネラル パートナー]],パラメーター[#Headers],0))*INDEX('プロジェクト パラメーター'!$B$12:$H$12,1,MATCH(詳細[[#Headers],[ジェネラル パートナー]],パラメーター[#Headers],0))*詳細[[#This Row],[作業時間計画]]","v":{"v":7000,"d":"¥7,000"}},{"$f":"INDEX(パラメーター[],MATCH(詳細[[#This Row],[プロジェクトの種類]],パラメーター[プロジェクトの種類],0),MATCH(詳細[[#Headers],[会社弁護士]],パラメーター[#Headers],0))*INDEX('プロジェクト パラメーター'!$B$12:$H$12,1,MATCH(詳細[[#Headers],[会社弁護士]],パラメーター[#Headers],0))*詳細[[#This Row],[作業時間計画]]","v":{"v":20000,"d":"¥20,000"}},{"$f":"INDEX(パラメーター[],MATCH(詳細[[#This Row],[プロジェクトの種類]],パラメーター[プロジェクトの種類],0),MATCH(詳細[[#Headers],[訴訟弁護士]],パラメーター[#Headers],0))*INDEX('プロジェクト パラメーター'!$B$12:$H$12,1,MATCH(詳細[[#Headers],[訴訟弁護士]],パラメーター[#Headers],0))*詳細[[#This Row],[作業時間計画]]","v":{"v":0,"d":"¥0"}},{"$f":"INDEX(パラメーター[],MATCH(詳細[[#This Row],[プロジェクトの種類]],パラメーター[プロジェクトの種類],0),MATCH(詳細[[#Headers],[知的財産弁護士]],パラメーター[#Headers],0))*INDEX('プロジェクト パラメーター'!$B$12:$H$12,1,MATCH(詳細[[#Headers],[知的財産弁護士]],パラメーター[#Headers],0))*詳細[[#This Row],[作業時間計画]]","v":{"v":0,"d":"¥0"}},{"$f":"INDEX(パラメーター[],MATCH(詳細[[#This Row],[プロジェクトの種類]],パラメーター[プロジェクトの種類],0),MATCH(詳細[[#Headers],[破産弁護士]],パラメーター[#Headers],0))*INDEX('プロジェクト パラメーター'!$B$12:$H$12,1,MATCH(詳細[[#Headers],[破産弁護士]],パラメーター[#Headers],0))*詳細[[#This Row],[作業時間計画]]","v":{"v":0,"d":"¥0"}},{"$f":"INDEX(パラメーター[],MATCH(詳細[[#This Row],[プロジェクトの種類]],パラメーター[プロジェクトの種類],0),MATCH(詳細[[#Headers],[管理スタッフ]],パラメーター[#Headers],0))*INDEX('プロジェクト パラメーター'!$B$12:$H$12,1,MATCH(詳細[[#Headers],[管理スタッフ]],パラメーター[#Headers],0))*詳細[[#This Row],[作業時間計画]]","v":{"v":12500,"d":"¥12,500"}},{"$f":"INDEX(パラメーター[],MATCH(詳細[[#This Row],[プロジェクトの種類]],パラメーター[プロジェクトの種類],0),MATCH(詳細[[#Headers],[ジェネラル パートナー]],パラメーター[#Headers],0))*INDEX('プロジェクト パラメーター'!$B$12:$H$12,1,MATCH(詳細[[#Headers],[ジェネラル パートナー]],パラメーター[#Headers],0))*詳細[[#This Row],[作業時間実績]]","v":{"v":7700,"d":"¥7,700"}},{"$f":"INDEX(パラメーター[],MATCH(詳細[[#This Row],[プロジェクトの種類]],パラメーター[プロジェクトの種類],0),MATCH(詳細[[#Headers],[会社弁護士]],パラメーター[#Headers],0))*INDEX('プロジェクト パラメーター'!$B$12:$H$12,1,MATCH(詳細[[#Headers],[会社弁護士]],パラメーター[#Headers],0))*詳細[[#This Row],[作業時間実績]]","v":{"v":22000,"d":"¥22,000"}},{"$f":"INDEX(パラメーター[],MATCH(詳細[[#This Row],[プロジェクトの種類]],パラメーター[プロジェクトの種類],0),MATCH(詳細[[#Headers],[訴訟弁護士]],パラメーター[#Headers],0))*INDEX('プロジェクト パラメーター'!$B$12:$H$12,1,MATCH(詳細[[#Headers],[訴訟弁護士]],パラメーター[#Headers],0))*詳細[[#This Row],[作業時間実績]]","v":{"v":0,"d":"¥0"}},{"$f":"INDEX(パラメーター[],MATCH(詳細[[#This Row],[プロジェクトの種類]],パラメーター[プロジェクトの種類],0),MATCH(詳細[[#Headers],[知的財産弁護士]],パラメーター[#Headers],0))*INDEX('プロジェクト パラメーター'!$B$12:$H$12,1,MATCH(詳細[[#Headers],[知的財産弁護士]],パラメーター[#Headers],0))*詳細[[#This Row],[作業時間実績]]","v":{"v":0,"d":"¥0"}},{"$f":"INDEX(パラメーター[],MATCH(詳細[[#This Row],[プロジェクトの種類]],パラメーター[プロジェクトの種類],0),MATCH(詳細[[#Headers],[破産弁護士]],パラメーター[#Headers],0))*INDEX('プロジェクト パラメーター'!$B$12:$H$12,1,MATCH(詳細[[#Headers],[破産弁護士]],パラメーター[#Headers],0))*詳細[[#This Row],[作業時間実績]]","v":{"v":0,"d":"¥0"}},{"$f":"INDEX(パラメーター[],MATCH(詳細[[#This Row],[プロジェクトの種類]],パラメーター[プロジェクトの種類],0),MATCH(詳細[[#Headers],[管理スタッフ]],パラメーター[#Headers],0))*INDEX('プロジェクト パラメーター'!$B$12:$H$12,1,MATCH(詳細[[#Headers],[管理スタッフ]],パラメーター[#Headers],0))*詳細[[#This Row],[作業時間実績]]","v":{"v":13750,"d":"¥13,750"}}]
[null,"プロジェクト 2","事業の買収",{"$f":"TODAY()+30","v":"2019-03-17"},{"$f":"TODAY()+100","v":"2019-05-26"},{"$f":"TODAY()+40","v":"2019-03-27"},{"$f":"TODAY()+110","v":"2019-06-05"},400,390,{"$f":"DAYS360(詳細[[#This Row],[開始計画]],詳細[[#This Row],[終了計画]],FALSE)","v":69},{"$f":"DAYS360(詳細[[#This Row],[開始実績]],詳細[[#This Row],[終了実績]],FALSE)","v":68},{"$f":"INDEX(パラメーター[],MATCH(詳細[[#This Row],[プロジェクトの種類]],パラメーター[プロジェクトの種類],0),MATCH(詳細[[#Headers],[ジェネラル パートナー]],パラメーター[#Headers],0))*INDEX('プロジェクト パラメーター'!$B$12:$H$12,1,MATCH(詳細[[#Headers],[ジェネラル パートナー]],パラメーター[#Headers],0))*詳細[[#This Row],[作業時間計画]]","v":{"v":14000,"d":"¥14,000"}},{"$f":"INDEX(パラメーター[],MATCH(詳細[[#This Row],[プロジェクトの種類]],パラメーター[プロジェクトの種類],0),MATCH(詳細[[#Headers],[会社弁護士]],パラメーター[#Headers],0))*INDEX('プロジェクト パラメーター'!$B$12:$H$12,1,MATCH(詳細[[#Headers],[会社弁護士]],パラメーター[#Headers],0))*詳細[[#This Row],[作業時間計画]]","v":{"v":40000,"d":"¥40,000"}},{"$f":"INDEX(パラメーター[],MATCH(詳細[[#This Row],[プロジェクトの種類]],パラメーター[プロジェクトの種類],0),MATCH(詳細[[#Headers],[訴訟弁護士]],パラメーター[#Headers],0))*INDEX('プロジェクト パラメーター'!$B$12:$H$12,1,MATCH(詳細[[#Headers],[訴訟弁護士]],パラメーター[#Headers],0))*詳細[[#This Row],[作業時間計画]]","v":{"v":0,"d":"¥0"}},{"$f":"INDEX(パラメーター[],MATCH(詳細[[#This Row],[プロジェクトの種類]],パラメーター[プロジェクトの種類],0),MATCH(詳細[[#Headers],[知的財産弁護士]],パラメーター[#Headers],0))*INDEX('プロジェクト パラメーター'!$B$12:$H$12,1,MATCH(詳細[[#Headers],[知的財産弁護士]],パラメーター[#Headers],0))*詳細[[#This Row],[作業時間計画]]","v":{"v":11000,"d":"¥11,000"}},{"$f":"INDEX(パラメーター[],MATCH(詳細[[#This Row],[プロジェクトの種類]],パラメーター[プロジェクトの種類],0),MATCH(詳細[[#Headers],[破産弁護士]],パラメーター[#Headers],0))*INDEX('プロジェクト パラメーター'!$B$12:$H$12,1,MATCH(詳細[[#Headers],[破産弁護士]],パラメーター[#Headers],0))*詳細[[#This Row],[作業時間計画]]","v":{"v":0,"d":"¥0"}},{"$f":"INDEX(パラメーター[],MATCH(詳細[[#This Row],[プロジェクトの種類]],パラメーター[プロジェクトの種類],0),MATCH(詳細[[#Headers],[管理スタッフ]],パラメーター[#Headers],0))*INDEX('プロジェクト パラメーター'!$B$12:$H$12,1,MATCH(詳細[[#Headers],[管理スタッフ]],パラメーター[#Headers],0))*詳細[[#This Row],[作業時間計画]]","v":{"v":20000,"d":"¥20,000"}},{"$f":"INDEX(パラメーター[],MATCH(詳細[[#This Row],[プロジェクトの種類]],パラメーター[プロジェクトの種類],0),MATCH(詳細[[#Headers],[ジェネラル パートナー]],パラメーター[#Headers],0))*INDEX('プロジェクト パラメーター'!$B$12:$H$12,1,MATCH(詳細[[#Headers],[ジェネラル パートナー]],パラメーター[#Headers],0))*詳細[[#This Row],[作業時間実績]]","v":{"v":13650,"d":"¥13,650"}},{"$f":"INDEX(パラメーター[],MATCH(詳細[[#This Row],[プロジェクトの種類]],パラメーター[プロジェクトの種類],0),MATCH(詳細[[#Headers],[会社弁護士]],パラメーター[#Headers],0))*INDEX('プロジェクト パラメーター'!$B$12:$H$12,1,MATCH(詳細[[#Headers],[会社弁護士]],パラメーター[#Headers],0))*詳細[[#This Row],[作業時間実績]]","v":{"v":39000,"d":"¥39,000"}},{"$f":"INDEX(パラメーター[],MATCH(詳細[[#This Row],[プロジェクトの種類]],パラメーター[プロジェクトの種類],0),MATCH(詳細[[#Headers],[訴訟弁護士]],パラメーター[#Headers],0))*INDEX('プロジェクト パラメーター'!$B$12:$H$12,1,MATCH(詳細[[#Headers],[訴訟弁護士]],パラメーター[#Headers],0))*詳細[[#This Row],[作業時間実績]]","v":{"v":0,"d":"¥0"}},{"$f":"INDEX(パラメーター[],MATCH(詳細[[#This Row],[プロジェクトの種類]],パラメーター[プロジェクトの種類],0),MATCH(詳細[[#Headers],[知的財産弁護士]],パラメーター[#Headers],0))*INDEX('プロジェクト パラメーター'!$B$12:$H$12,1,MATCH(詳細[[#Headers],[知的財産弁護士]],パラメーター[#Headers],0))*詳細[[#This Row],[作業時間実績]]","v":{"v":10725,"d":"¥10,725"}},{"$f":"INDEX(パラメーター[],MATCH(詳細[[#This Row],[プロジェクトの種類]],パラメーター[プロジェクトの種類],0),MATCH(詳細[[#Headers],[破産弁護士]],パラメーター[#Headers],0))*INDEX('プロジェクト パラメーター'!$B$12:$H$12,1,MATCH(詳細[[#Headers],[破産弁護士]],パラメーター[#Headers],0))*詳細[[#This Row],[作業時間実績]]","v":{"v":0,"d":"¥0"}},{"$f":"INDEX(パラメーター[],MATCH(詳細[[#This Row],[プロジェクトの種類]],パラメーター[プロジェクトの種類],0),MATCH(詳細[[#Headers],[管理スタッフ]],パラメーター[#Headers],0))*INDEX('プロジェクト パラメーター'!$B$12:$H$12,1,MATCH(詳細[[#Headers],[管理スタッフ]],パラメーター[#Headers],0))*詳細[[#This Row],[作業時間実績]]","v":{"v":19500,"d":"¥19,500"}}]
[null,"プロジェクト 3","製造物責任防御",{"$f":"TODAY()+150","v":"2019-07-15"},{"$f":"TODAY()+150","v":"2019-07-15"},{"$f":"TODAY()+150","v":"2019-07-15"},{"$f":"TODAY()+170","v":"2019-08-04"},500,500,{"$f":"DAYS360(詳細[[#This Row],[開始計画]],詳細[[#This Row],[終了計画]],FALSE)","v":0},{"$f":"DAYS360(詳細[[#This Row],[開始実績]],詳細[[#This Row],[終了実績]],FALSE)","v":19},{"$f":"INDEX(パラメーター[],MATCH(詳細[[#This Row],[プロジェクトの種類]],パラメーター[プロジェクトの種類],0),MATCH(詳細[[#Headers],[ジェネラル パートナー]],パラメーター[#Headers],0))*INDEX('プロジェクト パラメーター'!$B$12:$H$12,1,MATCH(詳細[[#Headers],[ジェネラル パートナー]],パラメーター[#Headers],0))*詳細[[#This Row],[作業時間計画]]","v":{"v":35000,"d":"¥35,000"}},{"$f":"INDEX(パラメーター[],MATCH(詳細[[#This Row],[プロジェクトの種類]],パラメーター[プロジェクトの種類],0),MATCH(詳細[[#Headers],[会社弁護士]],パラメーター[#Headers],0))*INDEX('プロジェクト パラメーター'!$B$12:$H$12,1,MATCH(詳細[[#Headers],[会社弁護士]],パラメーター[#Headers],0))*詳細[[#This Row],[作業時間計画]]","v":{"v":0,"d":"¥0"}},{"$f":"INDEX(パラメーター[],MATCH(詳細[[#This Row],[プロジェクトの種類]],パラメーター[プロジェクトの種類],0),MATCH(詳細[[#Headers],[訴訟弁護士]],パラメーター[#Headers],0))*INDEX('プロジェクト パラメーター'!$B$12:$H$12,1,MATCH(詳細[[#Headers],[訴訟弁護士]],パラメーター[#Headers],0))*詳細[[#This Row],[作業時間計画]]","v":{"v":75000,"d":"¥75,000"}},{"$f":"INDEX(パラメーター[],MATCH(詳細[[#This Row],[プロジェクトの種類]],パラメーター[プロジェクトの種類],0),MATCH(詳細[[#Headers],[知的財産弁護士]],パラメーター[#Headers],0))*INDEX('プロジェクト パラメーター'!$B$12:$H$12,1,MATCH(詳細[[#Headers],[知的財産弁護士]],パラメーター[#Headers],0))*詳細[[#This Row],[作業時間計画]]","v":{"v":0,"d":"¥0"}},{"$f":"INDEX(パラメーター[],MATCH(詳細[[#This Row],[プロジェクトの種類]],パラメーター[プロジェクトの種類],0),MATCH(詳細[[#Headers],[破産弁護士]],パラメーター[#Headers],0))*INDEX('プロジェクト パラメーター'!$B$12:$H$12,1,MATCH(詳細[[#Headers],[破産弁護士]],パラメーター[#Headers],0))*詳細[[#This Row],[作業時間計画]]","v":{"v":0,"d":"¥0"}},{"$f":"INDEX(パラメーター[],MATCH(詳細[[#This Row],[プロジェクトの種類]],パラメーター[プロジェクトの種類],0),MATCH(詳細[[#Headers],[管理スタッフ]],パラメーター[#Headers],0))*INDEX('プロジェクト パラメーター'!$B$12:$H$12,1,MATCH(詳細[[#Headers],[管理スタッフ]],パラメーター[#Headers],0))*詳細[[#This Row],[作業時間計画]]","v":{"v":18750,"d":"¥18,750"}},{"$f":"INDEX(パラメーター[],MATCH(詳細[[#This Row],[プロジェクトの種類]],パラメーター[プロジェクトの種類],0),MATCH(詳細[[#Headers],[ジェネラル パートナー]],パラメーター[#Headers],0))*INDEX('プロジェクト パラメーター'!$B$12:$H$12,1,MATCH(詳細[[#Headers],[ジェネラル パートナー]],パラメーター[#Headers],0))*詳細[[#This Row],[作業時間実績]]","v":{"v":35000,"d":"¥35,000"}},{"$f":"INDEX(パラメーター[],MATCH(詳細[[#This Row],[プロジェクトの種類]],パラメーター[プロジェクトの種類],0),MATCH(詳細[[#Headers],[会社弁護士]],パラメーター[#Headers],0))*INDEX('プロジェクト パラメーター'!$B$12:$H$12,1,MATCH(詳細[[#Headers],[会社弁護士]],パラメーター[#Headers],0))*詳細[[#This Row],[作業時間実績]]","v":{"v":0,"d":"¥0"}},{"$f":"INDEX(パラメーター[],MATCH(詳細[[#This Row],[プロジェクトの種類]],パラメーター[プロジェクトの種類],0),MATCH(詳細[[#Headers],[訴訟弁護士]],パラメーター[#Headers],0))*INDEX('プロジェクト パラメーター'!$B$12:$H$12,1,MATCH(詳細[[#Headers],[訴訟弁護士]],パラメーター[#Headers],0))*詳細[[#This Row],[作業時間実績]]","v":{"v":75000,"d":"¥75,000"}},{"$f":"INDEX(パラメーター[],MATCH(詳細[[#This Row],[プロジェクトの種類]],パラメーター[プロジェクトの種類],0),MATCH(詳細[[#Headers],[知的財産弁護士]],パラメーター[#Headers],0))*INDEX('プロジェクト パラメーター'!$B$12:$H$12,1,MATCH(詳細[[#Headers],[知的財産弁護士]],パラメーター[#Headers],0))*詳細[[#This Row],[作業時間実績]]","v":{"v":0,"d":"¥0"}},{"$f":"INDEX(パラメーター[],MATCH(詳細[[#This Row],[プロジェクトの種類]],パラメーター[プロジェクトの種類],0),MATCH(詳細[[#Headers],[破産弁護士]],パラメーター[#Headers],0))*INDEX('プロジェクト パラメーター'!$B$12:$H$12,1,MATCH(詳細[[#Headers],[破産弁護士]],パラメーター[#Headers],0))*詳細[[#This Row],[作業時間実績]]","v":{"v":0,"d":"¥0"}},{"$f":"INDEX(パラメーター[],MATCH(詳細[[#This Row],[プロジェクトの種類]],パラメーター[プロジェクトの種類],0),MATCH(詳細[[#Headers],[管理スタッフ]],パラメーター[#Headers],0))*INDEX('プロジェクト パラメーター'!$B$12:$H$12,1,MATCH(詳細[[#Headers],[管理スタッフ]],パラメーター[#Headers],0))*詳細[[#This Row],[作業時間実績]]","v":{"v":18750,"d":"¥18,750"}}]
[null,"プロジェクト 4","特許申請",{"$f":"TODAY()+200","v":"2019-09-03"},{"$f":"TODAY()+230","v":"2019-10-03"},{"$f":"TODAY()+230","v":"2019-10-03"},{"$f":"TODAY()+230","v":"2019-10-03"},150,145,{"$f":"DAYS360(詳細[[#This Row],[開始計画]],詳細[[#This Row],[終了計画]],FALSE)","v":30},{"$f":"DAYS360(詳細[[#This Row],[開始実績]],詳細[[#This Row],[終了実績]],FALSE)","v":0},{"$f":"INDEX(パラメーター[],MATCH(詳細[[#This Row],[プロジェクトの種類]],パラメーター[プロジェクトの種類],0),MATCH(詳細[[#Headers],[ジェネラル パートナー]],パラメーター[#Headers],0))*INDEX('プロジェクト パラメーター'!$B$12:$H$12,1,MATCH(詳細[[#Headers],[ジェネラル パートナー]],パラメーター[#Headers],0))*詳細[[#This Row],[作業時間計画]]","v":{"v":5250,"d":"¥5,250"}},{"$f":"INDEX(パラメーター[],MATCH(詳細[[#This Row],[プロジェクトの種類]],パラメーター[プロジェクトの種類],0),MATCH(詳細[[#Headers],[会社弁護士]],パラメーター[#Headers],0))*INDEX('プロジェクト パラメーター'!$B$12:$H$12,1,MATCH(詳細[[#Headers],[会社弁護士]],パラメーター[#Headers],0))*詳細[[#This Row],[作業時間計画]]","v":{"v":0,"d":"¥0"}},{"$f":"INDEX(パラメーター[],MATCH(詳細[[#This Row],[プロジェクトの種類]],パラメーター[プロジェクトの種類],0),MATCH(詳細[[#Headers],[訴訟弁護士]],パラメーター[#Headers],0))*INDEX('プロジェクト パラメーター'!$B$12:$H$12,1,MATCH(詳細[[#Headers],[訴訟弁護士]],パラメーター[#Headers],0))*詳細[[#This Row],[作業時間計画]]","v":{"v":0,"d":"¥0"}},{"$f":"INDEX(パラメーター[],MATCH(詳細[[#This Row],[プロジェクトの種類]],パラメーター[プロジェクトの種類],0),MATCH(詳細[[#Headers],[知的財産弁護士]],パラメーター[#Headers],0))*INDEX('プロジェクト パラメーター'!$B$12:$H$12,1,MATCH(詳細[[#Headers],[知的財産弁護士]],パラメーター[#Headers],0))*詳細[[#This Row],[作業時間計画]]","v":{"v":24750,"d":"¥24,750"}},{"$f":"INDEX(パラメーター[],MATCH(詳細[[#This Row],[プロジェクトの種類]],パラメーター[プロジェクトの種類],0),MATCH(詳細[[#Headers],[破産弁護士]],パラメーター[#Headers],0))*INDEX('プロジェクト パラメーター'!$B$12:$H$12,1,MATCH(詳細[[#Headers],[破産弁護士]],パラメーター[#Headers],0))*詳細[[#This Row],[作業時間計画]]","v":{"v":0,"d":"¥0"}},{"$f":"INDEX(パラメーター[],MATCH(詳細[[#This Row],[プロジェクトの種類]],パラメーター[プロジェクトの種類],0),MATCH(詳細[[#Headers],[管理スタッフ]],パラメーター[#Headers],0))*INDEX('プロジェクト パラメーター'!$B$12:$H$12,1,MATCH(詳細[[#Headers],[管理スタッフ]],パラメーター[#Headers],0))*詳細[[#This Row],[作業時間計画]]","v":{"v":5625,"d":"¥5,625"}},{"$f":"INDEX(パラメーター[],MATCH(詳細[[#This Row],[プロジェクトの種類]],パラメーター[プロジェクトの種類],0),MATCH(詳細[[#Headers],[ジェネラル パートナー]],パラメーター[#Headers],0))*INDEX('プロジェクト パラメーター'!$B$12:$H$12,1,MATCH(詳細[[#Headers],[ジェネラル パートナー]],パラメーター[#Headers],0))*詳細[[#This Row],[作業時間実績]]","v":{"v":5075,"d":"¥5,075"}},{"$f":"INDEX(パラメーター[],MATCH(詳細[[#This Row],[プロジェクトの種類]],パラメーター[プロジェクトの種類],0),MATCH(詳細[[#Headers],[会社弁護士]],パラメーター[#Headers],0))*INDEX('プロジェクト パラメーター'!$B$12:$H$12,1,MATCH(詳細[[#Headers],[会社弁護士]],パラメーター[#Headers],0))*詳細[[#This Row],[作業時間実績]]","v":{"v":0,"d":"¥0"}},{"$f":"INDEX(パラメーター[],MATCH(詳細[[#This Row],[プロジェクトの種類]],パラメーター[プロジェクトの種類],0),MATCH(詳細[[#Headers],[訴訟弁護士]],パラメーター[#Headers],0))*INDEX('プロジェクト パラメーター'!$B$12:$H$12,1,MATCH(詳細[[#Headers],[訴訟弁護士]],パラメーター[#Headers],0))*詳細[[#This Row],[作業時間実績]]","v":{"v":0,"d":"¥0"}},{"$f":"INDEX(パラメーター[],MATCH(詳細[[#This Row],[プロジェクトの種類]],パラメーター[プロジェクトの種類],0),MATCH(詳細[[#Headers],[知的財産弁護士]],パラメーター[#Headers],0))*INDEX('プロジェクト パラメーター'!$B$12:$H$12,1,MATCH(詳細[[#Headers],[知的財産弁護士]],パラメーター[#Headers],0))*詳細[[#This Row],[作業時間実績]]","v":{"v":23925,"d":"¥23,925"}},{"$f":"INDEX(パラメーター[],MATCH(詳細[[#This Row],[プロジェクトの種類]],パラメーター[プロジェクトの種類],0),MATCH(詳細[[#Headers],[破産弁護士]],パラメーター[#Headers],0))*INDEX('プロジェクト パラメーター'!$B$12:$H$12,1,MATCH(詳細[[#Headers],[破産弁護士]],パラメーター[#Headers],0))*詳細[[#This Row],[作業時間実績]]","v":{"v":0,"d":"¥0"}},{"$f":"INDEX(パラメーター[],MATCH(詳細[[#This Row],[プロジェクトの種類]],パラメーター[プロジェクトの種類],0),MATCH(詳細[[#Headers],[管理スタッフ]],パラメーター[#Headers],0))*INDEX('プロジェクト パラメーター'!$B$12:$H$12,1,MATCH(詳細[[#Headers],[管理スタッフ]],パラメーター[#Headers],0))*詳細[[#This Row],[作業時間実績]]","v":{"v":5437.5,"d":"¥5,438"}}]
[null,"プロジェクト 5","従業員の訴訟",{"$f":"TODAY()+220","v":"2019-09-23"},{"$f":"TODAY()+250","v":"2019-10-23"},{"$f":"TODAY()+230","v":"2019-10-03"},{"$f":"TODAY()+259","v":"2019-11-01"},250,255,{"$f":"DAYS360(詳細[[#This Row],[開始計画]],詳細[[#This Row],[終了計画]],FALSE)","v":30},{"$f":"DAYS360(詳細[[#This Row],[開始実績]],詳細[[#This Row],[終了実績]],FALSE)","v":28},{"$f":"INDEX(パラメーター[],MATCH(詳細[[#This Row],[プロジェクトの種類]],パラメーター[プロジェクトの種類],0),MATCH(詳細[[#Headers],[ジェネラル パートナー]],パラメーター[#Headers],0))*INDEX('プロジェクト パラメーター'!$B$12:$H$12,1,MATCH(詳細[[#Headers],[ジェネラル パートナー]],パラメーター[#Headers],0))*詳細[[#This Row],[作業時間計画]]","v":{"v":17500,"d":"¥17,500"}},{"$f":"INDEX(パラメーター[],MATCH(詳細[[#This Row],[プロジェクトの種類]],パラメーター[プロジェクトの種類],0),MATCH(詳細[[#Headers],[会社弁護士]],パラメーター[#Headers],0))*INDEX('プロジェクト パラメーター'!$B$12:$H$12,1,MATCH(詳細[[#Headers],[会社弁護士]],パラメーター[#Headers],0))*詳細[[#This Row],[作業時間計画]]","v":{"v":6250,"d":"¥6,250"}},{"$f":"INDEX(パラメーター[],MATCH(詳細[[#This Row],[プロジェクトの種類]],パラメーター[プロジェクトの種類],0),MATCH(詳細[[#Headers],[訴訟弁護士]],パラメーター[#Headers],0))*INDEX('プロジェクト パラメーター'!$B$12:$H$12,1,MATCH(詳細[[#Headers],[訴訟弁護士]],パラメーター[#Headers],0))*詳細[[#This Row],[作業時間計画]]","v":{"v":30000,"d":"¥30,000"}},{"$f":"INDEX(パラメーター[],MATCH(詳細[[#This Row],[プロジェクトの種類]],パラメーター[プロジェクトの種類],0),MATCH(詳細[[#Headers],[知的財産弁護士]],パラメーター[#Headers],0))*INDEX('プロジェクト パラメーター'!$B$12:$H$12,1,MATCH(詳細[[#Headers],[知的財産弁護士]],パラメーター[#Headers],0))*詳細[[#This Row],[作業時間計画]]","v":{"v":0,"d":"¥0"}},{"$f":"INDEX(パラメーター[],MATCH(詳細[[#This Row],[プロジェクトの種類]],パラメーター[プロジェクトの種類],0),MATCH(詳細[[#Headers],[破産弁護士]],パラメーター[#Headers],0))*INDEX('プロジェクト パラメーター'!$B$12:$H$12,1,MATCH(詳細[[#Headers],[破産弁護士]],パラメーター[#Headers],0))*詳細[[#This Row],[作業時間計画]]","v":{"v":0,"d":"¥0"}},{"$f":"INDEX(パラメーター[],MATCH(詳細[[#This Row],[プロジェクトの種類]],パラメーター[プロジェクトの種類],0),MATCH(詳細[[#Headers],[管理スタッフ]],パラメーター[#Headers],0))*INDEX('プロジェクト パラメーター'!$B$12:$H$12,1,MATCH(詳細[[#Headers],[管理スタッフ]],パラメーター[#Headers],0))*詳細[[#This Row],[作業時間計画]]","v":{"v":9375,"d":"¥9,375"}},{"$f":"INDEX(パラメーター[],MATCH(詳細[[#This Row],[プロジェクトの種類]],パラメーター[プロジェクトの種類],0),MATCH(詳細[[#Headers],[ジェネラル パートナー]],パラメーター[#Headers],0))*INDEX('プロジェクト パラメーター'!$B$12:$H$12,1,MATCH(詳細[[#Headers],[ジェネラル パートナー]],パラメーター[#Headers],0))*詳細[[#This Row],[作業時間実績]]","v":{"v":17850,"d":"¥17,850"}},{"$f":"INDEX(パラメーター[],MATCH(詳細[[#This Row],[プロジェクトの種類]],パラメーター[プロジェクトの種類],0),MATCH(詳細[[#Headers],[会社弁護士]],パラメーター[#Headers],0))*INDEX('プロジェクト パラメーター'!$B$12:$H$12,1,MATCH(詳細[[#Headers],[会社弁護士]],パラメーター[#Headers],0))*詳細[[#This Row],[作業時間実績]]","v":{"v":6375,"d":"¥6,375"}},{"$f":"INDEX(パラメーター[],MATCH(詳細[[#This Row],[プロジェクトの種類]],パラメーター[プロジェクトの種類],0),MATCH(詳細[[#Headers],[訴訟弁護士]],パラメーター[#Headers],0))*INDEX('プロジェクト パラメーター'!$B$12:$H$12,1,MATCH(詳細[[#Headers],[訴訟弁護士]],パラメーター[#Headers],0))*詳細[[#This Row],[作業時間実績]]","v":{"v":30600,"d":"¥30,600"}},{"$f":"INDEX(パラメーター[],MATCH(詳細[[#This Row],[プロジェクトの種類]],パラメーター[プロジェクトの種類],0),MATCH(詳細[[#Headers],[知的財産弁護士]],パラメーター[#Headers],0))*INDEX('プロジェクト パラメーター'!$B$12:$H$12,1,MATCH(詳細[[#Headers],[知的財産弁護士]],パラメーター[#Headers],0))*詳細[[#This Row],[作業時間実績]]","v":{"v":0,"d":"¥0"}},{"$f":"INDEX(パラメーター[],MATCH(詳細[[#This Row],[プロジェクトの種類]],パラメーター[プロジェクトの種類],0),MATCH(詳細[[#Headers],[破産弁護士]],パラメーター[#Headers],0))*INDEX('プロジェクト パラメーター'!$B$12:$H$12,1,MATCH(詳細[[#Headers],[破産弁護士]],パラメーター[#Headers],0))*詳細[[#This Row],[作業時間実績]]","v":{"v":0,"d":"¥0"}},{"$f":"INDEX(パラメーター[],MATCH(詳細[[#This Row],[プロジェクトの種類]],パラメーター[プロジェクトの種類],0),MATCH(詳細[[#Headers],[管理スタッフ]],パラメーター[#Headers],0))*INDEX('プロジェクト パラメーター'!$B$12:$H$12,1,MATCH(詳細[[#Headers],[管理スタッフ]],パラメーター[#Headers],0))*詳細[[#This Row],[作業時間実績]]","v":{"v":9562.5,"d":"¥9,563"}}]
[null,"集計",{"$nulls":5},{"$f":"SUBTOTAL(109,詳細[作業時間計画])","v":1500},{"$f":"SUBTOTAL(109,詳細[作業時間実績])","v":1510},{"$f":"SUBTOTAL(109,詳細[継続期間計画])","v":190},{"$f":"SUBTOTAL(109,詳細[継続期間実績])","v":171}]

{"sheet":"プロジェクト合計","index":3,"n_rows":11,"n_cols":16,"rows_kept":11,"merged":[[3,2,3,7],[3,8,3,13],[3,15,14,19]]}
["このワークシートでは、プロジェクト合計を取得します。会社名は、右のセルで自動的に更新されます。役立つ手順がこの列のセルに表示されます。下向き矢印で開始します。",{"$f":"'プロジェクト パラメーター'!B1","v":"会社名"}]
["このワークシートのタイトルは右のセルに表示されます。",{"$f":"'プロジェクト パラメーター'!B2","v":"法律事務所のプロジェクト計画"}]
["社外秘に関するメッセージが、右のセルに表示されます。",{"$f":"'プロジェクト パラメーター'!B3","v":"会社名 (極秘)"}]
["計画ラベルはセル C4に、実績ラベルはセル I4 に、情報のヒントはセル P4 にそれぞれ表示されます。",null,"計画",{"$nulls":5},"実績",{"$nulls":6},"情報:\nこのピボットテーブルは自動的に更新されません。更新するには、ピボットテーブル (ピボットテーブル内の任意のセル) を選択し、[ピボットテーブル ツール] の [分析] リボン タブで [更新] を選択します。または、ピボットテーブルを選択して Shift キーを押しながら F10 キーを押して、[更新] を選択します。"]
["右のセルから始まるピボットテーブルは自動的に更新されます。","プロジェクト名","ジェネラル パートナー ","業務 ","訴訟弁護士 ","知的財産 ","破産 ","管理スタッフ ","ジェネラル パートナー  ","業務  ","訴訟弁護士  ","破産  ","知的財産  ","管理スタッフ  "]
[null,"プロジェクト 1",{"v":7000,"d":"¥7,000.00"},{"v":20000,"d":"¥20,000.00"},{"v":0,"d":"¥0.00"},{"v":0,"d":"¥0.00"},{"v":0,"d":"¥0.00"},{"v":12500,"d":"¥12,500.00"},{"v":7700,"d":"¥7,700.00"},{"v":22000,"d":"¥22,000.00"},{"v":0,"d":"¥0.00"},{"v":0,"d":"¥0.00"},{"v":0,"d":"¥0.00"},{"v":13750,"d":"¥13,750.00"}]
[null,"プロジェクト 2",{"v":14000,"d":"¥14,000.00"},{"v":40000,"d":"¥40,000.00"},{"v":0,"d":"¥0.00"},{"v":11000,"d":"¥11,000.00"},{"v":0,"d":"¥0.00"},{"v":20000,"d":"¥20,000.00"},{"v":13650,"d":"¥13,650.00"},{"v":39000,"d":"¥39,000.00"},{"v":0,"d":"¥0.00"},{"v":10725,"d":"¥10,725.00"},{"v":0,"d":"¥0.00"},{"v":19500,"d":"¥19,500.00"}]
[null,"プロジェクト 3",{"v":35000,"d":"¥35,000.00"},{"v":0,"d":"¥0.00"},{"v":75000,"d":"¥75,000.00"},{"v":0,"d":"¥0.00"},{"v":0,"d":"¥0.00"},{"v":18750,"d":"¥18,750.00"},{"v":35000,"d":"¥35,000.00"},{"v":0,"d":"¥0.00"},{"v":75000,"d":"¥75,000.00"},{"v":0,"d":"¥0.00"},{"v":0,"d":"¥0.00"},{"v":18750,"d":"¥18,750.00"}]
[null,"プロジェクト 4",{"v":5250,"d":"¥5,250.00"},{"v":0,"d":"¥0.00"},{"v":0,"d":"¥0.00"},{"v":24750,"d":"¥24,750.00"},{"v":0,"d":"¥0.00"},{"v":5625,"d":"¥5,625.00"},{"v":5075,"d":"¥5,075.00"},{"v":0,"d":"¥0.00"},{"v":0,"d":"¥0.00"},{"v":23925,"d":"¥23,925.00"},{"v":0,"d":"¥0.00"},{"v":5437.5,"d":"¥5,437.50"}]
[null,"プロジェクト 5",{"v":17500,"d":"¥17,500.00"},{"v":6250,"d":"¥6,250.00"},{"v":30000,"d":"¥30,000.00"},{"v":0,"d":"¥0.00"},{"v":0,"d":"¥0.00"},{"v":9375,"d":"¥9,375.00"},{"v":17850,"d":"¥17,850.00"},{"v":6375,"d":"¥6,375.00"},{"v":30600,"d":"¥30,600.00"},{"v":0,"d":"¥0.00"},{"v":0,"d":"¥0.00"},{"v":9562.5,"d":"¥9,562.50"}]
[null,"集計",{"v":78750,"d":"¥78,750.00"},{"v":66250,"d":"¥66,250.00"},{"v":105000,"d":"¥105,000.00"},{"v":35750,"d":"¥35,750.00"},{"v":0,"d":"¥0.00"},{"v":66250,"d":"¥66,250.00"},{"v":79275,"d":"¥79,275.00"},{"v":67375,"d":"¥67,375.00"},{"v":105600,"d":"¥105,600.00"},{"v":34650,"d":"¥34,650.00"},{"v":0,"d":"¥0.00"},{"v":67000,"d":"¥67,000.00"}]